[Event "28th Hit Open-A 2024"]
[Site "Nova Gorica"]
[Date "2024.02.01"]
[Round "8.42"]
[White "Bajec, Borut"]
[Black "Mihelj, Edvard"]
[Result "1/2-1/2"]
[ECO "D30"]
[WhiteElo "1703"]
[BlackElo "1618"]
[Annotator "NA"]
[PlyCount "159"]
[EventDate "2024.01.22"]
[EventType "swiss"]
[EventCountry "SLO"]
[SourceTitle "playchess.com"]
[Source "ChessBase"]
[SourceQuality "1"]
[TimeControl "5400+30"]

1. d4 {[%emt 0:01:54]} d5 {[%emt 0:00:17]} 2. Nf3 {[%emt 0:00:24]} Nf6 {[%emt 0:00:34]} 3. c4 {[%emt 0:00:21]} e6 {[%emt 0:00:33]} 4. e3 {[%emt 0:00:28]} c6 {[%emt 0:01:00]} 5. Bd3 {[%emt 0:00:20]} Bd6 {[%emt 0:00:46]} 6. O-O {[%emt 0:00:25]} b6 {[%emt 0:00:27]} 7. Nc3 {[%emt 0:00:51]} Qc7 {[%emt 0:00:25]} 8. e4 {[%emt 0:00:50]} dxe4 {[%emt 0:02:17]} 9. Nxe4 {[%emt 0:00:15]} Nbd7 {[%emt 0:00:56]} 10. Nxd6+ {[%emt 0:08:29]} Qxd6 {[%emt 0:00:18]} 11. Bg5 {[%emt 0:00:35]} h6 {[%emt 0:00:44]} 12. Bh4 {[%emt 0:00:06]} Bb7 {[%emt 0:00:51]} 13. Bg3 {[%emt 0:03:50]} Qe7 {[%emt 0:00:27]} 14. Ne5 {[%emt 0:01:15]} Nxe5 {[%emt 0:05:48]} 15. Bxe5 {[%emt 0:00:20]} Rg8 {[%emt 0:02:07]} 16. Re1 {[%emt 0:03:03]} O-O-O {[%emt 0:00:37]} 17. Qa4 {[%emt 0:01:47]} a6 {[%emt 0:03:45]} 18. b4 {[%emt 0:03:36]} Nd7 {[%emt 0:01:44]} 19. Bg3 {[%emt 0:01:04]} e5 {[%emt 0:07:38]} 20. d5 {[%emt 0:01:33]} Qd6 {[%emt 0:05:59]} 21. Bf5 {[%emt 0:01:46]} f6 {[%emt 0:02:21]} 22. Red1 {[%emt 0:02:35]} g6 {[%emt 0:02:30]} 23. Be6 {[%emt 0:02:30]} Rg7 {[%emt 0:01:21]} 24. c5 {[%emt 0:03:17]} Qe7 {[%emt 0:09:03]} 25. Rac1 {[%emt 0:01:20]} Kb8 {[%emt 0:04:15]} 26. Bxd7 {[%emt 0:07:58]} b5 {[%emt 0:04:13]} 27. Qb3 {[%emt 0:05:11]} Rxd7 {[%emt 0:01:06]} 28. d6 {[%emt 0:01:25]} Qd8 {[%emt 0:02:24]} 29. Re1 {[%emt 0:02:54]} g5 {[%emt 0:00:30]} 30. Qf3 {[%emt 0:01:21]} Rh7 {[%emt 0:01:39]} 31. h4 {[%emt 0:02:42]} Ka7 {[%emt 0:01:22]} 32. Rc3 {[%emt 0:02:23]} Qf8 {[%emt 0:01:42]} 33. Rxe5 {[%emt 0:02:46]} Rhf7 {[%emt 0:01:19]} 34. Re6 {[%emt 0:01:36]} f5 {[%emt 0:02:12]} 35. Be5 {[%emt 0:04:52]} gxh4 {[%emt 0:02:50]} 36. Qh5 {[%emt 0:01:42]} f4 {[%emt 0:02:00]} 37. Rf3 {[%emt 0:00:14]} Rf5 {[%emt 0:01:51]} 38. Qxh4 {[%emt 0:01:15]} h5 {[%emt 0:01:36]} 39. Rf6 {[%emt 0:00:59]} Rxf6 {[%emt 0:01:44]} 40. Qxf6 {[%emt 0:00:10]} Qg8 {[%emt 0:00:30]} 41. Qxf4 {[%emt 0:01:38]} Qxa2 {[%emt 0:00:37]} 42. Kh2 {[%emt 0:01:44]} Bc8 {[%emt 0:01:25]} 43. Qf8 {[%emt 0:01:17]} Kb7 {[%emt 0:00:14]} 44. Rg3 {[%emt 0:00:17]} Qe6 {[%emt 0:01:52]} 45. f4 {[%emt 0:02:32]} h4 {[%emt 0:03:52]} 46. Rg8 {[%emt 0:00:19]} Rf7 {[%emt 0:00:39]} 47. Rg7 {[%emt 0:00:22]} Rxg7 {[%emt 0:00:12]} 48. Qxg7+ {[%emt 0:00:03]} Bd7 {[%emt 0:00:25]} 49. Qg5 {[%emt 0:01:08]} h3 {[%emt 0:00:53]} 50. g4 {[%emt 0:03:31]} Qxg4 {[%emt 0:01:43]} 51. Qxg4 {[%emt 0:00:41]} Bxg4 {[%emt 0:00:08]} 52. Bc3 {[%emt 0:00:49]} Kc8 {[%emt 0:00:16]} 53. Be1 {[%emt 0:00:18]} Kd7 {[%emt 0:00:27]} 54. Bg3 {[%emt 0:00:18]} Ke6 {[%emt 0:00:18]} 55. Kg1 {[%emt 0:00:28]} Kd5 {[%emt 0:00:37]} 56. Kf2 {[%emt 0:00:07]} Ke4 {[%emt 0:03:11]} 57. Bh2 {[%emt 0:00:12]} Kd4 {[%emt 0:01:22]} 58. Bg3 {[%emt 0:00:02]} Ke4 {[%emt 0:02:14]} 59. Bh2 {[%emt 0:00:07]} Kd4 {[%emt 0:00:16]} 60. Kg3 {[%emt 0:01:08]} Bd7 {[%emt 0:01:23]} 61. Kh4 {[%emt 0:00:17]} a5 {[%emt 0:05:18]} 62. Bg1+ {[%emt 0:00:19]} Kd5 {[%emt 0:01:16]} 63. bxa5 {[%emt 0:00:04]} h2 {[%emt 0:00:26]} 64. Bxh2 {[%emt 0:00:11]} Kxc5 {[%emt 0:00:02]} 65. Kg5 {[%emt 0:00:51]} b4 {[%emt 0:01:33]} 66. f5 {[%emt 0:00:00]} Kd5 {[%emt 0:01:42]} 67. Bf4 {[%emt 0:00:32]} b3 {[%emt 0:00:24]} 68. Bc1 {[%emt 0:00:03]} Kxd6 {[%emt 0:00:11]} 69. f6 {[%emt 0:00:13]} Be6 {[%emt 0:00:04]} 70. Kg6 {[%emt 0:01:54]} Kc5 {[%emt 0:02:42]} 71. f7 {[%emt 0:00:00]} Bxf7+ {[%emt 0:00:06]} 72. Kxf7 {[%emt 0:00:00]} Kb5 {[%emt 0:00:13]} 73. Ke6 {[%emt 0:00:07]} Kxa5 {[%emt 0:00:16]} 74. Ke5 {[%emt 0:00:37]} Kb4 {[%emt 0:00:07]} 75. Bb2 {[%emt 0:01:19]} c5 {[%emt 0:00:11]} 76. Kd5 {[%emt 0:00:35]} c4 {[%emt 0:00:20]} 77. Kd4 {[%emt 0:00:04]} Kb5 {[%emt 0:00:24]} 78. Kc3 {[%emt 0:00:05]} Kc5 {[%emt 0:00:13]} 79. Ba3+ {[%emt 0:00:13]} Kd5 {[%emt 0:00:07]} 80. Bb2 {[%emt 0:00:08]} 1/2-1/2

[Event "28th Hit Open-A 2024"]
[Site "Nova Gorica"]
[Date "2024.02.01"]
[Round "8.43"]
[White "Zlatanovic, Marcus"]
[Black "Gratton, Damjan"]
[Result "1/2-1/2"]
[ECO "B07"]
[WhiteElo "1745"]
[BlackElo "1691"]
[Annotator "NA"]
[PlyCount "105"]
[EventDate "2024.01.22"]
[EventType "swiss"]
[EventCountry "SLO"]
[SourceTitle "playchess.com"]
[Source "ChessBase"]
[SourceQuality "1"]
[TimeControl "5400+30"]

1. e4 {[%emt 0:00:03]} d6 {[%emt 0:00:20]} 2. d4 {[%emt 0:00:33]} Nf6 {[%emt 0:00:30]} 3. Nc3 {[%emt 0:00:21]} c6 {[%emt 0:00:34]} 4. f4 {[%emt 0:01:10]} Qa5 {[%emt 0:01:39]} 5. Bd3 {[%emt 0:05:21]} e5 {[%emt 0:00:54]} 6. fxe5 {[%emt 0:03:26]} dxe5 {[%emt 0:00:36]} 7. dxe5 {[%emt 0:00:16]} Ng4 {[%emt 0:02:39]} 8. h3 {[%emt 0:02:04]} Nxe5 {[%emt 0:00:29]} 9. Nf3 {[%emt 0:04:26]} Bd6 {[%emt 0:00:52]} 10. Be3 {[%emt 0:05:28]} Nbd7 {[%emt 0:02:33]} 11. O-O {[%emt 0:05:43]} O-O {[%emt 0:02:38]} 12. a3 {[%emt 0:22:05]} Qc7 {[%emt 0:03:19]} 13. Qe2 {[%emt 0:03:32]} Nxf3+ {[%emt 0:05:47]} 14. gxf3 {[%emt 0:03:41]} Ne5 {[%emt 0:01:53]} 15. Qg2 {[%emt 0:01:29]} Ng6 {[%emt 0:09:06]} 16. Ne2 {[%emt 0:00:38]} Qd7 {[%emt 0:02:30]} 17. f4 {[%emt 0:05:38]} Qxh3 {[%emt 0:01:46]} 18. Qxh3 {[%emt 0:00:45]} Bxh3 {[%emt 0:00:09]} 19. Rf2 {[%emt 0:00:41]} Bd7 {[%emt 0:03:16]} 20. Rh2 {[%emt 0:01:31]} Bc7 {[%emt 0:05:07]} 21. Kg2 {[%emt 0:01:26]} Rfe8 {[%emt 0:01:19]} 22. Rah1 {[%emt 0:00:46]} h6 {[%emt 0:04:24]} 23. e5 {[%emt 0:02:57]} Ne7 {[%emt 0:02:34]} 24. Ng3 {[%emt 0:02:40]} Be6 {[%emt 0:03:28]} 25. Be4 {[%emt 0:00:40]} Bd5 {[%emt 0:01:16]} 26. Bxd5 {[%emt 0:00:42]} Nxd5 {[%emt 0:00:41]} 27. Bc1 {[%emt 0:00:10]} Ne7 {[%emt 0:04:19]} 28. Kf3 {[%emt 0:01:36]} Rad8 {[%emt 0:03:28]} 29. Nh5 {[%emt 0:02:19]} Ng6 {[%emt 0:08:34]} 30. b3 {[%emt 0:06:53]} Bb6 {[%emt 0:02:38]} 31. Bb2 {[%emt 0:04:35]} Bd4 {[%emt 0:00:34]} 32. Bxd4 {[%emt 0:00:38]} Rxd4 {[%emt 0:00:11]} 33. Rg1 {[%emt 0:00:16]} Red8 {[%emt 0:02:48]} 34. e6 {[%emt 0:01:01]} Rd2 {[%emt 0:05:49]} 35. Rxg6 {[%emt 0:03:26]} fxg6 {[%emt 0:04:46]} 36. e7 {[%emt 0:01:03]} Re8 {[%emt 0:00:38]} 37. Rxd2 {[%emt 0:00:21]} gxh5 {[%emt 0:00:25]} 38. Rd7 {[%emt 0:00:49]} Kf7 {[%emt 0:00:42]} 39. Rxb7 {[%emt 0:00:05]} Rxe7 {[%emt 0:00:16]} 40. Rb8 {[%emt 0:00:31]} Rc7 {[%emt 0:01:45]} 41. Rd8 {[%emt 0:01:56]} Ke7 {[%emt 0:00:49]} 42. Rg8 {[%emt 0:01:24]} Kf7 {[%emt 0:01:39]} 43. Rd8 {[%emt 0:00:05]} c5 {[%emt 0:00:40]} 44. Rd5 {[%emt 0:00:41]} g6 {[%emt 0:00:24]} 45. Rd6 {[%emt 0:00:44]} Kg7 {[%emt 0:00:44]} 46. Rd5 {[%emt 0:01:16]} Kf6 {[%emt 0:01:38]} 47. Rd6+ {[%emt 0:00:17]} Kf7 {[%emt 0:00:17]} 48. f5 {[%emt 0:02:37]} gxf5 {[%emt 0:00:28]} 49. Rxh6 {[%emt 0:00:02]} Rd7 {[%emt 0:00:06]} 50. Rxh5 {[%emt 0:00:04]} Kg6 {[%emt 0:00:04]} 51. Rh2 {[%emt 0:00:30]} Kf7 {[%emt 0:00:03]} 52. Rh6 {[%emt 0:00:07]} Rd2 {[%emt 0:00:02]} 53. Rh3 {[%emt 0:00:22]} 1/2-1/2

[Event "28th Hit Open-A 2024"]
[Site "Nova Gorica"]
[Date "2024.02.01"]
[Round "8.44"]
[White "Papler, Peter"]
[Black "Mulec, Dejan"]
[Result "0-1"]
[ECO "A06"]
[WhiteElo "1691"]
[BlackElo "1577"]
[Annotator "NA"]
[PlyCount "122"]
[EventDate "2024.01.22"]
[EventType "swiss"]
[EventCountry "SLO"]
[SourceTitle "playchess.com"]
[Source "ChessBase"]
[SourceQuality "1"]
[TimeControl "5400+30"]

1. d3 {[%emt 0:00:07]} Nf6 {[%emt 0:00:37]} 2. Nf3 {[%emt 0:00:40]} d5 {[%emt 0:00:34]} 3. Nbd2 {[%emt 0:00:00]} Bf5 {[%emt 0:01:39]} 4. c3 {[%emt 0:00:04]} c6 {[%emt 0:03:34]} 5. Qc2 {[%emt 0:01:08]} Nbd7 {[%emt 0:04:24]} 6. e4 {[%emt 0:05:12]} dxe4 {[%emt 0:01:26]} 7. dxe4 {[%emt 0:00:07]} Bg6 {[%emt 0:01:12]} 8. Nh4 {[%emt 0:01:09]} e5 {[%emt 0:02:50]} 9. Nxg6 {[%emt 0:00:09]} hxg6 {[%emt 0:00:15]} 10. Bc4 {[%emt 0:01:03]} b5 {[%emt 0:02:52]} 11. Be2 {[%emt 0:00:20]} Qb6 {[%emt 0:02:15]} 12. Nb3 {[%emt 0:03:31]} a6 {[%emt 0:03:19]} 13. Be3 {[%emt 0:00:26]} Qc7 {[%emt 0:00:21]} 14. O-O {[%emt 0:00:50]} c5 {[%emt 0:01:10]} 15. Rad1 {[%emt 0:03:36]} c4 {[%emt 0:01:05]} 16. Nc1 {[%emt 0:00:52]} Bc5 {[%emt 0:01:57]} 17. Bxc5 {[%emt 0:10:44]} Nxc5 {[%emt 0:00:30]} 18. Rfe1 {[%emt 0:05:59]} O-O {[%emt 0:02:27]} 19. Bf3 {[%emt 0:02:08]} Rad8 {[%emt 0:01:28]} 20. b3 {[%emt 0:01:12]} Rxd1 {[%emt 0:02:38]} 21. Rxd1 {[%emt 0:00:20]} Rd8 {[%emt 0:06:27]} 22. Rxd8+ {[%emt 0:05:37]} Qxd8 {[%emt 0:00:09]} 23. bxc4 {[%emt 0:00:52]} bxc4 {[%emt 0:00:27]} 24. g3 {[%emt 0:00:23]} g5 {[%emt 0:13:23]} 25. h3 {[%emt 0:03:41]} Qd7 {[%emt 0:02:42]} 26. g4 {[%emt 0:07:51]} a5 {[%emt 0:04:55]} 27. Ne2 {[%emt 0:01:49]} Qd3 {[%emt 0:02:47]} 28. Qxd3 {[%emt 0:00:50]} cxd3 {[%emt 0:00:40]} 29. Ng3 {[%emt 0:00:08]} d2 {[%emt 0:01:34]} 30. Kf1 {[%emt 0:02:33]} Nfxe4 {[%emt 0:00:00]} 31. Nxe4 {[%emt 0:00:36]} Nxe4 {[%emt 0:00:00]} 32. Ke2 {[%emt 0:00:21]} d1=Q+ {[%emt 0:00:37]} 33. Kxd1 {[%emt 0:00:11]} Nxc3+ {[%emt 0:00:14]} 34. Kc2 {[%emt 0:00:14]} Nxa2 {[%emt 0:00:45]} 35. Kb3 {[%emt 0:00:14]} Nb4 {[%emt 0:01:20]} 36. Be4 {[%emt 0:00:21]} Na6 {[%emt 0:03:40]} 37. Kc4 {[%emt 0:02:26]} Kf8 {[%emt 0:04:16]} 38. Kb5 {[%emt 0:00:52]} Nc7+ {[%emt 0:00:41]} 39. Kxa5 {[%emt 0:00:34]} Ke7 {[%emt 0:00:14]} 40. Kb4 {[%emt 0:03:21]} Ne6 {[%emt 0:00:59]} 41. Bd3 {[%emt 0:00:35]} Nf4 {[%emt 0:00:24]} 42. Bf1 {[%emt 0:00:09]} Kd6 {[%emt 0:00:40]} 43. f3 {[%emt 0:01:48]} e4 {[%emt 0:06:33]} 44. fxe4 {[%emt 0:01:57]} Ke5 {[%emt 0:00:02]} 45. Kc3 {[%emt 0:00:25]} Kxe4 {[%emt 0:00:14]} 46. Bc4 {[%emt 0:03:36]} f6 {[%emt 0:00:30]} 47. Bf1 {[%emt 0:00:21]} Kf3 {[%emt 0:00:18]} 48. Kd4 {[%emt 0:00:20]} Kg3 {[%emt 0:00:38]} 49. Ke4 {[%emt 0:00:24]} Nxh3 {[%emt 0:00:41]} 50. Kf5 {[%emt 0:00:37]} Nf2 {[%emt 0:01:31]} 51. Be2 {[%emt 0:00:15]} Kh4 {[%emt 0:01:54]} 52. Kg6 {[%emt 0:05:44]} Nxg4 {[%emt 0:00:23]} 53. Kxg7 {[%emt 0:00:05]} f5 {[%emt 0:00:29]} 54. Kg6 {[%emt 0:00:10]} Ne3 {[%emt 0:01:07]} 55. Kf6 {[%emt 0:00:21]} f4 {[%emt 0:01:24]} 56. Ke5 {[%emt 0:00:11]} Kg3 {[%emt 0:00:23]} 57. Ke4 {[%emt 0:00:23]} g4 {[%emt 0:00:43]} 58. Ba6 {[%emt 0:00:42]} Nd1 {[%emt 0:01:05]} 59. Kd3 {[%emt 0:00:25]} Kf2 {[%emt 0:00:58]} 60. Ke4 {[%emt 0:02:26]} f3 {[%emt 0:01:16]} 61. Kf4 {[%emt 0:00:42]} g3 {[%emt 0:00:57]} 0-1

[Event "28th Hit Open-A 2024"]
[Site "Nova Gorica"]
[Date "2024.02.02"]
[Round "9.2"]
[White "Berkes, Ferenc"]
[Black "Karacsonyi, Gellert"]
[Result "1-0"]
[ECO "D30"]
[WhiteElo "2613"]
[BlackElo "2398"]
[Annotator "ChessBase"]
[PlyCount "113"]
[EventDate "2024.01.22"]
[EventType "swiss"]
[EventCountry "SLO"]
[SourceTitle "playchess.com"]
[Source "ChessBase"]
[SourceQuality "1"]
[TimeControl "5400+30"]

1. d4 {[%emt 0:00:04]} d5 {[%emt 0:00:07]} 2. c4 {[%emt 0:00:10]} e6 {[%emt 0:00:07]} 3. Nf3 {[%emt 0:00:07]} Nf6 {[%emt 0:00:09]} 4. e3 {[%emt 0:00:09]} a6 {[%emt 0:01:16]} 5. b3 {[%emt 0:00:38]} b6 {[%emt 0:02:29]} 6. cxd5 {[%emt 0:01:07]} exd5 {[%emt 0:00:12]} 7. Bd3 {[%emt 0:00:18]} Bd6 {[%emt 0:00:14]} 8. Ba3 {[%emt 0:00:56]} O-O {[%emt 0:00:19]} 9. Bxd6 {[%emt 0:02:48]} cxd6 {[%emt 0:03:50]} 10. Nc3 {[%emt 0:00:30]} a5 {[%emt 0:02:24]} 11. Rc1 {[%emt 0:03:29]} Na6 {[%emt 0:04:43]} 12. O-O {[%emt 0:03:58]} Nc7 {[%emt 0:05:57]} 13. h3 {[%emt 0:02:40]} Ba6 {[%emt 0:06:34]} 14. Bxa6 {[%emt 0:03:22]} Rxa6 {[%emt 0:00:14]} 15. Qd3 {[%emt 0:00:37]} Qd7 {[%emt 0:00:45]} 16. Rc2 {[%emt 0:02:26]} b5 {[%emt 0:03:54]} 17. Ne2 {[%emt 0:03:17]} Ra7 {[%emt 0:04:25]} 18. a3 {[%emt 0:02:20]} a4 {[%emt 0:03:53]} 19. Rb1 {[%emt 0:00:23]} b4 {[%emt 0:05:53]} 20. bxa4 {[%emt 0:14:44]} bxa3 {[%emt 0:00:13]} 21. Qb3 {[%emt 0:03:49]} Rfa8 {[%emt 0:12:16]} 22. Nc3 {[%emt 0:00:45]} Ne4 {[%emt 0:00:42]} 23. Qxa3 {[%emt 0:17:54]} Nxc3 {[%emt 0:00:07]} 24. Qxc3 {[%emt 0:00:05]} Qxa4 {[%emt 0:02:02]} 25. Qc6 {[%emt 0:05:58]} Ne8 {[%emt 0:02:33]} 26. g4 {[%emt 0:01:19]} Qxc6 {[%emt 0:04:03]} 27. Rxc6 {[%emt 0:00:05]} Kf8 {[%emt 0:00:52]} 28. Kg2 {[%emt 0:02:34]} Ra2 {[%emt 0:02:18]} 29. g5 {[%emt 0:00:25]} f6 {[%emt 0:06:10]} 30. h4 {[%emt 0:01:00]} fxg5 {[%emt 0:00:39]} 31. Nxg5 {[%emt 0:02:00]} Kg8 {[%emt 0:05:23]} 32. Rb7 {[%emt 0:07:59]} R2a7 {[%emt 0:04:22]} 33. Rxa7 {[%emt 0:02:43]} Rxa7 {[%emt 0:00:02]} 34. Rc8 {[%emt 0:00:10]} Re7 {[%emt 0:00:07]} 35. Rd8 {[%emt 0:03:15]} h6 {[%emt 0:02:46]} 36. Nh3 {[%emt 0:00:05]} Kf7 {[%emt 0:00:10]} 37. Nf4 {[%emt 0:00:08]} Re4 {[%emt 0:02:35]} 38. Rd7+ {[%emt 0:00:35]} Re7 {[%emt 0:04:10]} 39. Rxe7+ {[%emt 0:00:08]} Kxe7 {[%emt 0:00:01]} 40. Nxd5+ {[%emt 0:00:08]} Ke6 {[%emt 0:00:05]} 41. e4 {[%emt 0:00:45]} g6 {[%emt 0:00:05]} 42. f4 {[%emt 0:01:26]} Ng7 {[%emt 0:00:07]} 43. Kf3 {[%emt 0:00:08]} Kf7 {[%emt 0:00:59]} 44. Nc7 {[%emt 0:00:31]} Ke7 {[%emt 0:00:36]} 45. d5 {[%emt 0:03:29]} Nh5 {[%emt 0:01:38]} 46. Ne6 {[%emt 0:02:01]} Nf6 {[%emt 0:00:19]} 47. Nd4 {[%emt 0:00:07]} Nh5 {[%emt 0:03:44]} 48. Nc2 {[%emt 0:01:01]} Kf6 {[%emt 0:01:56]} 49. Ne3 {[%emt 0:00:08]} g5 {[%emt 0:00:43]} 50. fxg5+ {[%emt 0:05:24]} hxg5 {[%emt 0:00:02]} 51. hxg5+ {[%emt 0:00:10]} Kxg5 {[%emt 0:00:21]} 52. Nc4 {[%emt 0:00:21]} Kf6 {[%emt 0:00:06]} 53. Nxd6 {[%emt 0:01:06]} Ke5 {[%emt 0:00:04]} 54. Nf7+ {[%emt 0:00:20]} Kf6 {[%emt 0:00:44]} 55. Nh6 {[%emt 0:00:46]} Ke5 {[%emt 0:00:22]} 56. Ke3 {[%emt 0:01:02]} Nf6 {[%emt 0:02:32]} 57. Nf7# {[%emt 0:00:08]} 1-0

[Event "28th Hit Open-A 2024"]
[Site "Nova Gorica"]
[Date "2024.02.02"]
[Round "9.3"]
[White "Goroshkov, Maksym"]
[Black "Sebenik, Matej"]
[Result "1/2-1/2"]
[ECO "B51"]
[WhiteElo "2338"]
[BlackElo "2536"]
[Annotator "ChessBase"]
[PlyCount "89"]
[EventDate "2024.01.22"]
[EventType "swiss"]
[EventCountry "SLO"]
[SourceTitle "playchess.com"]
[Source "ChessBase"]
[SourceQuality "1"]
[TimeControl "5400+30"]

1. e4 {[%emt 0:01:35]} c5 {[%emt 0:00:17]} 2. Nf3 {[%emt 0:00:23]} Nc6 {[%emt 0:00:16]} 3. Bb5 {[%emt 0:01:45]} d6 {[%emt 0:00:13]} 4. O-O {[%emt 0:00:38]} Bd7 {[%emt 0:00:19]} 5. c3 {[%emt 0:02:24]} a6 {[%emt 0:05:29]} 6. Ba4 {[%emt 0:00:15]} Nf6 {[%emt 0:04:06]} 7. Re1 {[%emt 0:01:12]} b5 {[%emt 0:00:08]} 8. Bc2 {[%emt 0:00:06]} Bg4 {[%emt 0:00:07]} 9. d4 {[%emt 0:06:56]} cxd4 {[%emt 0:03:10]} 10. cxd4 {[%emt 0:00:13]} e5 {[%emt 0:01:37]} 11. dxe5 {[%emt 0:08:00]} dxe5 {[%emt 0:01:12]} 12. Be3 {[%emt 0:01:53]} Bb4 {[%emt 0:03:10]} 13. Nc3 {[%emt 0:02:21]} O-O {[%emt 0:03:22]} 14. a3 {[%emt 0:03:06]} Bxc3 {[%emt 0:03:05]} 15. bxc3 {[%emt 0:00:16]} Qe7 {[%emt 0:02:13]} 16. a4 {[%emt 0:04:29]} b4 {[%emt 0:04:15]} 17. cxb4 {[%emt 0:04:46]} Nxb4 {[%emt 0:00:50]} 18. Bb1 {[%emt 0:02:49]} a5 {[%emt 0:18:50]} 19. h3 {[%emt 0:05:44]} Bh5 {[%emt 0:00:23]} 20. Bg5 {[%emt 0:04:49]} Rfd8 {[%emt 0:01:44]} 21. Qb3 {[%emt 0:00:50]} h6 {[%emt 0:02:01]} 22. Bh4 {[%emt 0:02:11]} Bxf3 {[%emt 0:07:54]} 23. Qxf3 {[%emt 0:00:25]} Rd2 {[%emt 0:00:08]} 24. Qc3 {[%emt 0:04:09]} Rad8 {[%emt 0:00:23]} 25. Bg3 {[%emt 0:00:13]} R2d4 {[%emt 0:06:22]} 26. Bc2 {[%emt 0:02:05]} Nh5 {[%emt 0:00:17]} 27. Bh2 {[%emt 0:02:13]} Nf4 {[%emt 0:04:26]} 28. Bxf4 {[%emt 0:01:33]} exf4 {[%emt 0:00:04]} 29. Rad1 {[%emt 0:01:29]} f3 {[%emt 0:17:31]} 30. Rxd4 {[%emt 0:01:47]} Rxd4 {[%emt 0:00:09]} 31. Bb1 {[%emt 0:02:47]} Qd7 {[%emt 0:03:37]} 32. Qxf3 {[%emt 0:00:30]} Qxa4 {[%emt 0:00:07]} 33. e5 {[%emt 0:00:19]} Qd7 {[%emt 0:00:07]} 34. Rc1 {[%emt 0:01:55]} Qe8 {[%emt 0:08:21]} 35. Rc7 {[%emt 0:03:52]} g6 {[%emt 0:01:07]} 36. Ra7 {[%emt 0:02:38]} Nc6 {[%emt 0:00:28]} 37. Rc7 {[%emt 0:01:51]} Nxe5 {[%emt 0:00:18]} 38. Qc3 {[%emt 0:00:18]} Rd1+ {[%emt 0:00:45]} 39. Kh2 {[%emt 0:00:01]} Qe6 {[%emt 0:00:30]} 40. Bc2 {[%emt 0:01:38]} Rd8 {[%emt 0:00:34]} 41. f4 {[%emt 0:00:27]} Nd7 {[%emt 0:00:11]} 42. Qxa5 {[%emt 0:00:51]} Qd6 {[%emt 0:00:13]} 43. Rc4 {[%emt 0:00:41]} Nf6 {[%emt 0:00:19]} 44. Qe5 {[%emt 0:00:54]} Kg7 {[%emt 0:01:06]} 45. Qc3 {[%emt 0:01:59]} 1/2-1/2

[Event "28th Hit Open-A 2024"]
[Site "Nova Gorica"]
[Date "2024.02.02"]
[Round "9.4"]
[White "Perossa, Nicolas"]
[Black "Csonka, Balazs"]
[Result "0-1"]
[ECO "C78"]
[WhiteElo "2277"]
[BlackElo "2479"]
[Annotator "ChessBase"]
[PlyCount "164"]
[EventDate "2024.01.22"]
[EventType "swiss"]
[EventCountry "SLO"]
[SourceTitle "playchess.com"]
[Source "ChessBase"]
[SourceQuality "1"]
[TimeControl "5400+30"]

1. e4 {[%emt 0:00:21]} e5 {[%emt 0:00:06]} 2. Nf3 {[%emt 0:00:06]} Nc6 {[%emt 0:00:06]} 3. Bb5 {[%emt 0:00:07]} a6 {[%emt 0:02:48]} 4. Ba4 {[%emt 0:00:10]} Nf6 {[%emt 0:00:16]} 5. O-O {[%emt 0:00:28]} b5 {[%emt 0:01:39]} 6. Bb3 {[%emt 0:00:08]} Bc5 {[%emt 0:00:04]} 7. c3 {[%emt 0:05:36]} d6 {[%emt 0:00:13]} 8. d4 {[%emt 0:00:06]} Bb6 {[%emt 0:00:04]} 9. a4 {[%emt 0:00:09]} Rb8 {[%emt 0:00:07]} 10. a5 {[%emt 0:26:52]} Ba7 {[%emt 0:00:12]} 11. h3 {[%emt 0:00:04]} O-O {[%emt 0:07:23]} 12. Be3 {[%emt 0:00:14]} Nxe4 {[%emt 0:06:30]} 13. Bd5 {[%emt 0:02:35]} exd4 {[%emt 0:00:08]} 14. Bxc6 {[%emt 0:21:31]} dxe3 {[%emt 0:01:05]} 15. Bxe4 {[%emt 0:00:09]} Re8 {[%emt 0:01:18]} 16. Qc2 {[%emt 0:07:41]} exf2+ {[%emt 0:35:19]} 17. Rxf2 {[%emt 0:01:47]} Bxf2+ {[%emt 0:07:44]} 18. Kxf2 {[%emt 0:00:02]} h6 {[%emt 0:00:12]} 19. Qd3 {[%emt 0:10:00]} d5 {[%emt 0:08:18]} 20. Bh7+ {[%emt 0:07:54]} Kh8 {[%emt 0:04:12]} 21. Bf5 {[%emt 0:00:08]} c5 {[%emt 0:06:05]} 22. Bxc8 {[%emt 0:00:28]} Rxc8 {[%emt 0:00:06]} 23. Nbd2 {[%emt 0:04:37]} Rc6 {[%emt 0:02:24]} 24. Nf1 {[%emt 0:00:39]} Rce6 {[%emt 0:01:23]} 25. Ng3 {[%emt 0:01:11]} Kg8 {[%emt 0:01:37]} 26. Rd1 {[%emt 0:01:54]} Qxa5 {[%emt 0:05:37]} 27. Qxd5 {[%emt 0:00:07]} b4 {[%emt 0:00:54]} 28. Qc4 {[%emt 0:06:07]} bxc3 {[%emt 0:00:32]} 29. Qxc3 {[%emt 0:01:10]} Qb6 {[%emt 0:02:02]} 30. Kg1 {[%emt 0:02:28]} Re3 {[%emt 0:02:40]} 31. Qd2 {[%emt 0:00:39]} c4 {[%emt 0:01:29]} 32. Qd4 {[%emt 0:00:26]} Rb3 {[%emt 0:01:16]} 33. Qxb6 {[%emt 0:00:35]} Rxb6 {[%emt 0:00:20]} 34. Rc1 {[%emt 0:00:24]} Rxb2 {[%emt 0:00:42]} 35. Rxc4 {[%emt 0:00:02]} Ra2 {[%emt 0:00:14]} 36. Ne4 {[%emt 0:00:57]} a5 {[%emt 0:01:37]} 37. Nc3 {[%emt 0:00:31]} Rb2 {[%emt 0:01:02]} 38. Rc5 {[%emt 0:00:34]} Ra8 {[%emt 0:00:56]} 39. Ne5 {[%emt 0:00:27]} Rc2 {[%emt 0:00:45]} 40. Nd7 {[%emt 0:00:32]} Rd8 {[%emt 0:00:32]} 41. Ne5 {[%emt 0:00:26]} Rdd2 {[%emt 0:00:26]} 42. h4 {[%emt 0:00:35]} Rxg2+ {[%emt 0:00:20]} 43. Kh1 {[%emt 0:00:31]} Rh2+ {[%emt 0:00:37]} 44. Kg1 {[%emt 0:00:00]} Rhg2+ {[%emt 0:00:07]} 45. Kh1 {[%emt 0:00:42]} Rh2+ {[%emt 0:00:43]} 46. Kg1 {[%emt 0:00:00]} Rxh4 {[%emt 0:00:28]} 47. Nd7 {[%emt 0:00:05]} h5 {[%emt 0:00:35]} 48. Nb6 {[%emt 0:01:23]} Rg4+ {[%emt 0:00:35]} 49. Kh1 {[%emt 0:00:00]} Rh4+ {[%emt 0:00:06]} 50. Kg1 {[%emt 0:00:01]} Rg4+ {[%emt 0:00:31]} 51. Kh1 {[%emt 0:00:01]} h4 {[%emt 0:00:33]} 52. Nbd5 {[%emt 0:00:12]} f6 {[%emt 0:00:59]} 53. Rxa5 {[%emt 0:01:37]} Rc1+ {[%emt 0:00:30]} 54. Kh2 {[%emt 0:00:01]} Rc2+ {[%emt 0:00:03]} 55. Kh1 {[%emt 0:00:28]} Rd4 {[%emt 0:00:43]} 56. Ra8+ {[%emt 0:01:36]} Kh7 {[%emt 0:00:26]} 57. Ra7 {[%emt 0:00:45]} Rc1+ {[%emt 0:00:36]} 58. Kh2 {[%emt 0:00:01]} Rd2+ {[%emt 0:00:27]} 59. Kh3 {[%emt 0:00:01]} Rd3+ {[%emt 0:00:44]} 60. Kxh4 {[%emt 0:00:02]} Rcxc3 {[%emt 0:00:23]} 61. Nxc3 {[%emt 0:01:01]} Rxc3 {[%emt 0:00:06]} 62. Kh5 {[%emt 0:00:09]} Rc5+ {[%emt 0:00:10]} 63. Kg4 {[%emt 0:00:13]} Kg6 {[%emt 0:00:19]} 64. Rb7 {[%emt 0:00:08]} Rc4+ {[%emt 0:00:32]} 65. Kg3 {[%emt 0:00:05]} f5 {[%emt 0:00:06]} 66. Kf3 {[%emt 0:00:03]} Kf6 {[%emt 0:00:06]} 67. Kg3 {[%emt 0:00:10]} g6 {[%emt 0:00:08]} 68. Rb6+ {[%emt 0:00:07]} Kg5 {[%emt 0:00:04]} 69. Rb3 {[%emt 0:00:03]} Rc6 {[%emt 0:01:48]} 70. Ra3 {[%emt 0:00:12]} Kf6 {[%emt 0:00:11]} 71. Kh4 {[%emt 0:00:37]} Rc4+ {[%emt 0:01:19]} 72. Kg3 {[%emt 0:00:06]} Rg4+ {[%emt 0:00:15]} 73. Kf3 {[%emt 0:01:16]} Kg5 {[%emt 0:00:34]} 74. Ra5 {[%emt 0:03:58]} Rb4 {[%emt 0:00:14]} 75. Kg3 {[%emt 0:00:16]} Rb3+ {[%emt 0:00:06]} 76. Kg2 {[%emt 0:00:06]} Kg4 {[%emt 0:00:10]} 77. Ra6 {[%emt 0:00:55]} Rb2+ {[%emt 0:00:13]} 78. Kg1 {[%emt 0:00:04]} g5 {[%emt 0:00:07]} 79. Ra4+ {[%emt 0:00:03]} f4 {[%emt 0:00:09]} 80. Ra3 {[%emt 0:00:07]} f3 {[%emt 0:00:35]} 81. Ra1 {[%emt 0:00:01]} Kg3 {[%emt 0:00:09]} 82. Kf1 {[%emt 0:01:12]} Rh2 {[%emt 0:00:08]} 0-1